Cogmind - Beta 16 @@@ ROGUE MODE // 2025.10.28 @ 13:58:24 Player: QXander Result: Destroyed by D-53 Grenadier with Mini Grenade Launcher Performance ------------- Evolutions (0) 0 Regions Visited (4) 800 Robots Destroyed (12) 60 Value Destroyed (303) 303 Prototype IDs (23) 460 Alien Tech Used (0) 0 Bonus (300) 300 TOTAL SCORE: 1923 Bonus ------- Aligned with FarCom 300 Cogmind --------- Core Integrity 0/250 Matter 300/300 Energy 125/125 System Corruption 0% Temperature Cool (0) Movement Walking (120) Location -9/Mines Parts ------- > --- POWER (1) -------- Light Ion Engine > --- PROPULSION (2) --- Carbon-fiber Leg > --- UTILITY (2) ------ Heat Sink Medium Storage Unit > --- WEAPON (2) ------- (None) > --- INVENTORY (10) --- Aluminum Leg Aluminum Leg Experimental Sensor Array Modified TNC Peak State ------------ > --- POWER ------------ Ion Engine > --- PROPULSION ------- Aluminum Leg Carbon-fiber Leg > --- UTILITY ---------- Heat Sink Medium Storage Unit > --- WEAPON ----------- Beam Rifle Plasma Flamer > --- INVENTORY -------- Aluminum Leg Aluminum Leg Aluminum Leg Experimental Sensor Array Army-in-a-Box [Rating: 20] Favorites ----------- Power Ion Engine Engine Ion Engine Power Core Light Nuclear Core Propulsion Aluminum Leg Leg Aluminum Leg Utility Medium Storage Unit Device Heat Sink Storage Medium Storage Unit Protection Propulsion Shielding Weapon Plasma Flamer Energy Gun Beam Rifle Ballistic Gun Assault Rifle Ballistic Cannon Light Cannon Launcher Grenade Launcher Special Weapon Plasma Flamer Build | -11 -10 -10 -10 -9 ------- Run | Yrd Mat Min Exi Min Slots Evolved . | . . . . . Power . | . . . . . Propulsion . | . . . . . Utility . | . . . . . Weapon . | . . . . . Parts Attached 25 | 6 12 6 . 1 Power 4 | 1 2 . . 1 Engine 3 | 1 1 . . 1 Core 1 | . 1 . . . Reactor . | . . . . . Propulsion 5 | 2 2 1 . . Treads . | . . . . . Leg 5 | 2 2 1 . . Wheel . | . . . . . Hover . | . . . . . Flight . | . . . . . Utility 7 | 1 4 2 . . Device 3 | . 1 2 . . Storage 3 | 1 2 . . . Processor . | . . . . . Hackware . | . . . . . Protection 1 | . 1 . . . Artifact . | . . . . . Weapon 9 | 2 4 3 . . Energy Gun 1 | . . 1 . . Energy Cannon . | . . . . . Ballistic Gun 5 | 2 3 . . . Ballistic Cannon 1 | . 1 . . . Launcher 1 | . . 1 . . Special Weapon 1 | . . 1 . . Impact Weapon . | . . . . . Slashing Weapon . | . . . . . Piercing Weapon . | . . . . . Special Melee Weapon . | . . . . . Unidentified Prototypes . | . . . . . Parts Lost 3 | . . . . 3 Power . | . . . . . Propulsion 1 | . . . . 1 Utility . | . . . . . Weapon 2 | . . . . 2 Highest Loss Streak 3 | . . . . 3 To Critical Strikes . | . . . . . Average Backups 4 | . 3 6 4 4 Power . | . 1 . . . Propulsion 2 | . 1 2 3 2 Utility 1 | . . 1 1 2 Weapon 1 | . 1 2 . . Tool/Special . | . . . . . Unused Backups 7 | . 2 . 2 3 Power 1 | . 1 . . . Propulsion 1 | . . . . 1 Utility 3 | . . . 1 2 Weapon 2 | . 1 . 1 . Tool/Special . | . . . . . Average Slot Usage (%) 99 | . 99 100 100 99 Engine 9 | . 11 4 14 14 Core 4 | . 2 9 . . Leg 28 | . 28 28 28 28 Device 8 | . 12 3 14 14 Storage 19 | . 14 24 14 14 Energy Gun 6 | . . 2 14 14 Ballistic Gun 9 | . 22 12 . . Launcher 2 | . . 5 . . Special Weapon 8 | . . 7 14 13 Peak Build Rating 20 | 6 9 15 20 15 Average Rating 11 | 4 7 11 15 14 On Entrance 9 | . 6 9 15 15 Avg Prop Armor Cover (%) . | . . . . . Naked Turns . | . . . . . Heaviest Build 23 | 12 21 23 22 22 Greatest Support 25 | 20 20 25 25 25 Greatest Overweight (x) 1 | 1 1 1 . . Average Overweight (x) . | . . . . . Largest Inventory Capacity 10 | 8 10 10 10 10 Average Capacity 9 | 7 9 10 10 10 Most Carried 10 | 1 8 10 10 6 Average Carried 4 | . 3 6 4 4 Final Capacity 10 | 8 10 10 10 10 Final Carried 5 | 1 4 4 5 4 Class Distribution -------------------- 80% | Mutant 19% | Scavenger-Mutant Dominant Class ---------------- Mutant | -10/Materials Mutant | -10/Mines Mutant | -10/Exiles Scavenger-Mutant | -9/Mines Resources | -11 -10 -10 -10 -9 ----------- Run | Yrd Mat Min Exi Min Matter Collected 707 | 260 219 218 . 10 Remotely . | . . . . . Salvage Created 220 | . 175 30 . 15 Parts 18 | . 14 . . 4 Haulers Intercepted . | . . . . . Recyclers Shooed . | . . . . . Parts Field Recycled . | . . . . . Retrieved Matter . | . . . . . Parts Self-Destructed . | . . . . . Prevented . | . . . . . Parts Restored . | . . . . . Kills | -11 -10 -10 -10 -9 ------- Run | Yrd Mat Min Exi Min Combat Hostiles Destroyed 12 | . 7 2 . 3 Guns 3 | . 2 . . 1 Cannons 8 | . 5 1 . 2 Classes Destroyed 2 | . 2 . . . Swarmer 6 | . 3 . . 3 Grunt 6 | . 4 2 . . Best Kill Streak 5 | . 5 1 . 3 Combat Bots Only 5 | . 5 1 . 3 Max Kills in Single Turn 1 | . 1 1 . 1 Gunslinging . | . . . . . Exploded . | . . . . . Melee . | . . . . . Uniques/NPCs Destroyed . | . . . . . Combat | -11 -10 -10 -10 -9 -------- Run | Yrd Mat Min Exi Min Hostile Shots Fired 86 | . 36 16 . 34 Missed 23 | . 11 4 . 8 Hits 63 | . 25 12 . 26 Projectile 63 | . 25 12 . 26 AOE 5 | . . . . 5 Critical Strikes 1 | . . . . 1 Damage Taken 852 | . 317 148 . 387 Core 263 | . 104 57 . 102 Absorbed by Shields . | . . . . . Core Remaining (%) 100 | 100 . . . . Volleys Fired 53 | . 32 11 . 10 Largest 2 | . 2 1 . 2 Hottest 156 | . 50 100 . 156 Shots Fired 91 | . 64 11 . 16 Gun 54 | . 44 . . 10 Cannon 20 | . 20 . . . Launcher . | . . . . . Special 17 | . . 11 . 6 Kinetic 64 | . 64 . . . Thermal 27 | . . 11 . 16 Explosive . | . . . . . Electromagnetic . | . . . . . Robot Hit Streak 11 | . 7 11 . 3 Robot Miss Streak 4 | . 4 1 . 2 Penetration Max . | . . . . . Secondary Targets . | . . . . . Shots Hit Robots 64 | . 45 9 . 10 Core Hits 19 | . 14 2 . 3 Critical Kills . | . . . . . Critical Parts Destroyed . | . . . . . Critical Strikes 1 | . . 1 . . Burn 1 | . . 1 . . Melee Attacks . | . . . . . Impact . | . . . . . Slashing . | . . . . . Piercing . | . . . . . Sneak Attacks . | . . . . . Combat Hostiles . | . . . . . Follow-up Attacks . | . . . . . Damage Inflicted 848 | . 570 113 . 165 Guns 424 | . 325 . . 99 Cannons 245 | . 245 . . . Explosions . | . . . . . Melee . | . . . . . Ramming . | . . . . . Kinetic 570 | . 570 . . . Thermal 278 | . . 113 . 165 Explosive . | . . . . . Electromagnetic . | . . . . . Impact . | . . . . . Slashing . | . . . . . Piercing . | . . . . . Highest Corruption . | . . . . . Average Corruption . | . . . . . Corruption Purged . | . . . . . Corruption Blocked . | . . . . . Overload Shots . | . . . . . Overflow Damage . | . . . . . Projectiles . | . . . . . Explosions . | . . . . . Melee . | . . . . . Knockbacks 4 | . 4 . . . Impact . | . . . . . Kinetic 4 | . 4 . . . Secondary . | . . . . . Self-Inflicted Damage . | . . . . . Shots . | . . . . . Rammed . | . . . . . Targets Rammed . | . . . . . Kicked . | . . . . . Crushed . | . . . . . Highest Temperature 311 | . 40 311 . 278 Average Temperature 107 | . 13 150 . 166 Received Heat Transfer 240 | . 159 81 . . Effects 1 | . . . . 1 Energy Bleed 1 | . . . . 1 Siege Activations . | . . . . . Martial Activations . | . . . . . Shielding Activations . | . . . . . Robots Disrupted . | . . . . . Combat Hostiles . | . . . . . Robots Corrupted . | . . . . . Combat Hostiles . | . . . . . Parts Fried . | . . . . . Impact Corruptions . | . . . . . Robots Melted 1 | . . 1 . . Combat Hostiles 1 | . . 1 . . Parts Melted 1 | . . 1 . . Heat Transferred 1539 | . . 880 . 659 Parts Sabotaged . | . . . . . Parts Stolen . | . . . . . Parts Stripped . | . . . . . Power Chain Reactions . | . . . . . Alert | -11 -10 -10 -10 -9 ------- Run | Yrd Mat Min Exi Min Maximum Alert Level . | . . . . . Low Security (%) 100 | 100 100 100 . 100 Level 1 . | . . . . . Level 2 . | . . . . . Level 3 . | . . . . . Level 4 . | . . . . . Level 5 . | . . . . . High Security . | . . . . . Max Security . | . . . . . Peak Influence 100 | . 100 34 . 60 Initial . | . . . . . Average 8 | . 27 1 . 6 Influence Increases 302 | . 182 50 . 70 Destroy 0b10 Robot/C 240 | . 140 40 . 60 Destroy Leader 50 | . 30 10 . 10 Successful Hack 12 | . 12 . . . Influence Decreases 302 | . 180 52 . 70 Entered New Map 2 | . . 2 . . Time Decay 300 | . 180 50 . 70 Squads Dispatched 1 | . 1 . . . Investigation . | . . . . . Extermination . | . . . . . Reinforcement 1 | . 1 . . . Assault . | . . . . . Garrison . | . . . . . Intercept . | . . . . . Searches Triggered . | . . . . . Construction Impeded . | . . . . . Haulers Reinforced . | . . . . . Active Scanning Responses . | . . . . . Cargo Convoy Interrupts . | . . . . . Stealth | -11 -10 -10 -10 -9 --------- Run | Yrd Mat Min Exi Min Distress Signals 2 | . 2 . . . Communications Jammed . | . . . . . Distress Signals . | . . . . . Times Spotted 27 | . 14 3 . 10 Peak Tracking Total 7 | . 7 2 . 7 Tactical Retreats . | . . . . . Traps | -11 -10 -10 -10 -9 ------- Run | Yrd Mat Min Exi Min Traps Triggered . | . . . . . Indirectly . | . . . . . Trap Hack Attempts . | . . . . . Triggered . | . . . . . Disarmed . | . . . . . Reprogrammed . | . . . . . Reused . | . . . . . Traps Extracted . | . . . . . Installed . | . . . . . Triggered . | . . . . . Machines | -11 -10 -10 -10 -9 ---------- Run | Yrd Mat Min Exi Min Machines Disabled . | . . . . . Max in Single Turn . | . . . . . Machines Repaired . | . . . . . Machines Dismantled . | . . . . . Machines Sabotaged . | . . . . . Overloaded Fab Kills . | . . . . . Hacking | -11 -10 -10 -10 -9 --------- Run | Yrd Mat Min Exi Min Machines Accessed 5 | . 4 . 1 . Terminals 3 | . 3 . . . Fabricators . | . . . . . Repair Stations . | . . . . . Recycling Units 1 | . 1 . . . Scanalyzers . | . . . . . Garrison Access . | . . . . . Total Hacks 11 | . 10 . 1 . Successful 8 | . 7 . 1 . Failed 3 | . 3 . . . Catastrophic . | . . . . . Database Lockouts . | . . . . . Manual 1 | . . . 1 . Terminals 9 | . 9 . . . Fabricators . | . . . . . Repair Stations . | . . . . . Recycling Units 1 | . 1 . . . Scanalyzers . | . . . . . Garrison Access . | . . . . . Terminal Hacks 7 | . 6 . 1 . Emergency Access Points 1 | . 1 . . . Scanalyzer Index 1 | . 1 . . . Alert Level 1 | . 1 . . . Locate Traps 1 | . 1 . . . Zone Layout 2 | . 2 . . . Proto ID Catalog 1 | . . . 1 . Fabricator Hacks . | . . . . . Repair Station Hacks . | . . . . . Recycling Unit Hacks 1 | . 1 . . . Retrieve Components 1 | . 1 . . . Scanalyzer . | . . . . . Garrison Access Hacks . | . . . . . Unauthorized Hacks . | . . . . . Terminals . | . . . . . Fabricators . | . . . . . Repair Stations . | . . . . . Recycling Units . | . . . . . Scanalyzers . | . . . . . Garrison Access . | . . . . . Data Cores Recovered . | . . . . . Used . | . . . . . Hacking Detections 2 | . 2 . . . Full Trace Events . | . . . . . Feedback Events . | . . . . . Feedback Blocked . | . . . . . Robot Schematics Acquired . | . . . . . Robots Built . | . . . . . Authchips . | . . . . . Time . | . . . . . Total Robot Build Rating . | . . . . . Part Schematics Acquired . | . . . . . Parts Built . | . . . . . Authchips . | . . . . . Time . | . . . . . Total Part Build Rating . | . . . . . Part Studies Acquired . | . . . . . Parts Repaired . | . . . . . Time . | . . . . . Parts Recycled . | . . . . . Recycled Matter . | . . . . . Retrieved Matter . | . . . . . Retrieved Components 3 | . 3 . . . Parts Scanalyzed . | . . . . . Part Schematics Acquired . | . . . . . Parts Damaged . | . . . . . Bothacking | -11 -10 -10 -10 -9 ------------ Run | Yrd Mat Min Exi Min Used RIF Installer . | . . . . . Robots Hacked . | . . . . . Non-combat . | . . . . . Combat . | . . . . . Robot Hacks Applied . | . . . . . Relay Couplers Released . | . . . . . Fabnet Peak Effective % . | . . . . . Robots Rewired . | . . . . . Allies Hacked . | . . . . . Hacks Repelled . | . . . . . Allies | -11 -10 -10 -10 -9 -------- Run | Yrd Mat Min Exi Min Total Allies . | . . . . . Largest Group . | . . . . . Highest-Rated Group . | . . . . . Highest-Rated Ally . | . . . . . Total Orders . | . . . . . Ally Attacks . | . . . . . Total Damage . | . . . . . Kills . | . . . . . Allies Corrupted . | . . . . . Allies Melted . | . . . . . Intel | -11 -10 -10 -10 -9 ------- Run | Yrd Mat Min Exi Min Active Infowar (turns) 529 | . 479 50 . . Sensors 479 | . 479 . . . Seismic 50 | . . 50 . . Robot Analysis Total . | . . . . . Derelict Logs Recovered 4 | . . 3 . 1 Drone Launches . | . . . . . Drone Recoveries . | . . . . . Exploration | -11 -10 -10 -10 -9 ------------- Run | Yrd Mat Min Exi Min Turns Passed 2980 | 80 541 1335 416 608 Spaces Moved 1923 | 65 293 743 343 479 Core 13 | 13 . . . . Treads . | . . . . . Legs 1910 | 52 293 743 343 479 Wheels . | . . . . . Hover . | . . . . . Flight . | . . . . . Fastest Speed 50 | 50 120 120 120 120 Average Speed 139 | 107 120 171 120 120 Slowest Speed 190 | 120 190 190 120 120 Overloaded Moves . | . . . . . Propulsion Burnouts . | . . . . . Robots Hopped . | . . . . . Potential Cave-ins . | . . . . . Cave-ins Triggered . | . . . . . Exploration Rate (%) 51 | 4 34 92 62 65 Regions Visited 4 Branch Regions 3 Pre-discovered Areas 2 | . . 2 . . Known Exits Taken . | . . . . . Unknown Exits Taken 4 | 1 1 1 1 . Scrap Searched 3 | . . 2 . 1 Spaces Dug . | . . . . . Terrain Destroyed . | . . . . . Melee . | . . . . . Projectile . | . . . . . AOE . | . . . . . Terrain Rammed . | . . . . . Walls Destroyed . | . . . . . Machines Disabled . | . . . . . Actions | -11 -10 -10 -10 -9 --------- Run | Yrd Mat Min Exi Min Total 2129 | 72 420 795 349 493 Wait 86 | . 69 17 . . Move 1919 | 64 292 742 342 479 Hop . | . . . . . Pick Up 15 | 2 4 5 4 . Fast Attach 10 | 5 4 1 . . Attach 6 | 1 . 5 . . Detach 9 | . 3 6 . . Swap 11 | . 8 1 . 2 Drop 20 | . 8 7 3 2 Fire 53 | . 32 11 . 10 Melee . | . . . . . Ram . | . . . . . Kick . | . . . . . Crush . | . . . . . Escape Stasis . | . . . . . Rewire . | . . . . . Trap . | . . . . . Miscellaneous . | . . . . . Route ------- -11/Scrapyard -10/Materials -10/Mines (discovered 3 exits: *Mat x2 / *Exi) -10/Exiles (discovered 2 exits: [*Min x2]) -9/Mines History --------- Turn | Location | Event 2 | -11/Scrapyard | Met Revision 17 17 | -11/Scrapyard | Discovered new exit (range 16) 81 | -11/Scrapyard | Entered Materials 311 | -10/Materials | Build established: Mutant 590 | -10/Materials | Discovered new exit (range 16) 622 | -10/Materials | Entered Mines 635 | -10/Mines | Met a Derelict bent on vengeance 649 | -10/Mines | Identified exit to Materials 655 | -10/Mines | Learned location of Zion (-6) 681 | -10/Mines | Discovered exit to Materials (range 9) 689 | -10/Mines | YI-UF0 nonchalantly dropped a Grenade Launcher on the ground 838 | -10/Mines | Learned location of Mines (-9) 1005 | -10/Mines | Found a damaged Exp. Sensor Array with a note attached 1008 | -10/Mines | Found Prototype Device 1189 | -10/Mines | A weapon hastily lodged in a ceiling crevice suddenly fell to the ground 1308 | -10/Mines | Core integrity fell below 50% 1690 | -10/Mines | Joined a pair of Derelicts in attacking an 0b10 outpost 1949 | -10/Mines | Deemed a non-threat by the Exiles lab entrance 1950 | -10/Mines | Discovered new exit (range 5) 1957 | -10/Mines | Entered Exiles 1993 | -10/Exiles | Discovered new exit (range 15) 2051 | -10/Exiles | Met 8R-AWN 2077 | -10/Exiles | Met EX-HEX 2131 | -10/Exiles | Met EX-BIN 2152 | -10/Exiles | Aligned with FarCom system 2153 | -10/Exiles | Given EX-Vault access code 2189 | -10/Exiles | Opened EX-Vault 2207 | -10/Exiles | Found Modified TNC 2213 | -10/Exiles | Found AWS/Autocannon 2220 | -10/Exiles | Found Army-in-a-Box 2244 | -10/Exiles | Exiles lab attacked by MAIN.C 2349 | -10/Exiles | Discovered new exit (range 15) 2373 | -10/Exiles | Left Exiles lab with Modified TNC 2373 | -10/Exiles | Entered Mines 2695 | -9/Mines | Build established: Scavenger-Mutant 2886 | -9/Mines | Assembled infested the area 2891 | -9/Mines | Assisted by a Guerilla fighting off Assembled 2975 | -9/Mines | Core integrity fell below 20% 2981 | -9/Mines | Destroyed by D-53 Grenadier with Mini Grenade Launcher Last Messages --------------- 02451_ Acquired derelict log, extracted data. Data stored: Storage entrances (x1). 02465_ Dropped Aluminum Leg. 02600_ T-07 Excavator is excavating. 02716_ K-01 Serf collects debris. 02886_ ALERT: Infestation in the mines, dispatching Demolisher response squad. 02891_ A derelict emerges from the shadows: "You need to get out of here! I've been tracking a group of Assembled to figure out where they're coming from, and they're closing on this area, come on!" 02904_ OE-PT9(h): "I'll hold them off! Go on ahead or try to find another way!" 02910_ U-05 Engineer lays Concrete. 02911_ U-05 Engineer builds a Wall. 02968_ Plasma Flamer destroyed. 02974_ The unstable cave ceiling collapses. 02981_ Beam Rifle destroyed. 02981_ Aluminum Leg destroyed. Map ----- +----------------------------------------------------+ | ?????????# ##### ### ##????????????????????????? | | ?????????# ####?# #?????????????????????????? | | ?????????##### #????# #?????????????###### ?????? | | ?????????????# #????# ######??????### ?????? | | ?????????????# #??### # # ###??### ?????? | | ?????????????# #?## # ## ### ?????? | | ???????????### ### **[ % #?????? | | ??????###### ## =%* ? ""#?????? | | ??????# == ????# "%"??????? | | ??????# ## #??????# "%??????? | | ?????????## ##???????# ##?????? | | ??????????## ##?????????# ###???? | | ???????????## ### ##???????????# ##??? | | ????????????# ###?# ###?????????????# ##?? | | ????????????# #?### #????????????????# #?? | | ?????????#### ### ####???????????? #?? | | ????????# ##?????????? ## ##?? | | ??????????###### ##????????# #####??? | | ???????????????## ##??????# ##??????? | | ????????????????### #?????? #??????? | | ??????????????????## #?????? d #??????? | | ??????????????????## #???### #???????? | | ?????????????????## ##???# # #???????? | | ???????????????### ##????# ##??????? | | ???????????????# ######## #??????? | | ????????# %=a a a a @ # #??????? | | ????????# #### d ##??????? | | ??????????????## ##### ######???????? | | ???????????????# ###???# #????????????? | | ???????????????## #??????### #????????????? | | ????????????????###?????????# #????????????? | | ????????????????????????????# #????????????? | | ????????????????????????????## ####????????????? | | ?????????????????????????????#####???????????????? | | ?????????????????????????????????????????????????? | | ?????????????????????????????????????????????????? | | ?????????????????????????????????????????????????? | | | | | | | | | | | | | | | | | | | | | | | | | | | +----------------------------------------------------+ Best States ------------- Heat Dissipation 35 Energy Generation 14 Energy Capacity 250 Matter Stores 375 Matter Capacity 400 Sight Range 16 Robot Scan Range 14 Terrain Scan Density 10 Propulsion Shielding 33 Evasion (%) 55 Item Schematics ----------------- None Robot Schematics ------------------ None Fabricated ------------ Nothing Repaired ---------- Nothing Studied --------- None Alien Tech Used ----------------- None Achievements -------------- Sixth Sense You Again Challenges ------------ None Game ------ Seed ImpulseGatlingGun Manual? 0 Play Time 00:22:45 Cumulative 24.2 hours Start 2025.10.28 @ 13:38:42 End 2025.10.28 @ 13:58:24 Sessions 1 Manual Loads 0 Difficulty Rogue Special Mode None Game No. 32 Rogue 32 Adventurer 0 Explorer 0 Win Type - Total 0 Types 0/0/0/0/0/0/0/0/0/0 Lore% 22 Gallery% 24 Achievement% 12 Wizard Run 0 Options --------- Layout 1 ASCII 0 Keyboard 1 Movement Arrows Keybinds 0 Fullscreen 2 Font 24/Smallcaps Map View 50x35 Zoom Use 0% Tactical HUD 1 Map Filters NONE Filters NONE Steam 1 RUN: 920479cf-0801-4b58-a456-76142c605426